[Event "Championnat du monde jeunes U12F"]
[Date "2024.11.23"]
[White "Li, Sophie"]
[Black "Mozolevskaya, Tatyana Nik"]
[WhiteElo "1798"]
[BlackElo "1775"]
[Round "8.4"]
[Result "0-1"]
[TimeControl "5400+30"]

1. e4 {[%clk 1:30:36]} 1... g6 {[%clk 1:30:56]} 2. d4 {[%clk 1:30:52]} 2... Bg7
{[%clk 1:31:13]} 3. f4 {[%clk 1:30:09]} 3... d6 {[%clk 1:30:07]} 4. Nc3 {[%clk
1:29:58]} 4... a6 {[%clk 1:30:27]} 5. Nf3 {[%clk 1:29:05]} 5... b5 {[%clk
1:30:50]} 6. a3 {[%clk 1:27:46]} 6... Nd7 {[%clk 1:30:03]} 7. Be3 {[%clk
1:23:12]} 7... Bb7 {[%clk 1:29:47]} 8. e5 {[%clk 1:19:00]} 8... Nh6 {[%clk
1:24:41]} 9. h3 {[%clk 1:14:32]} 9... O-O {[%clk 1:08:41]} 10. Bd3 {[%clk
1:09:34]} 10... c5 {[%clk 1:05:55]} 11. d5 {[%clk 0:55:37]} 11... b4 {[%clk
0:54:20]} 12. axb4 {[%clk 0:54:03]} 12... cxb4 {[%clk 0:54:37]} 13. Na2 {[%clk
0:53:42]} 13... dxe5 {[%clk 0:49:02]} 14. fxe5 {[%clk 0:51:18]} 14... Bxd5
{[%clk 0:47:52]} 15. Nxb4 {[%clk 0:49:30]} 15... Bxf3 {[%clk 0:46:58]} 16. gxf3
{[%clk 0:44:52]} 16... Nxe5 {[%clk 0:45:47]} 17. Be4 {[%clk 0:44:35]} 17... Rb8
{[%clk 0:43:27]} 18. Qxd8 {[%clk 0:42:30]} 18... Rfxd8 {[%clk 0:39:31]} 19. Bc5
{[%clk 0:41:14]} 19... Rb5 {[%clk 0:37:25]} 20. Nxa6 Rxb2 {[%clk 0:37:00]} 21.
Bxe7 {[%clk 0:37:06]} 21... Re8 {[%clk 0:34:53]} 22. Ba3 {[%clk 0:35:58]} 22...
Nxf3+ {[%clk 0:32:45]} 23. Kf2 {[%clk 0:35:28]} 23... Ng5 {[%clk 0:32:57]} 24.
Bxb2 {[%clk 0:35:00]} 24... Nxe4+ {[%clk 0:33:20]} 25. Kf3 {[%clk 0:34:50]}
25... Bxb2 {[%clk 0:33:32]} 26. Rae1 {[%clk 0:34:33]} 26... Ng5+ {[%clk
0:31:15]} 27. Kf4 {[%clk 0:33:57]} 27... Ne6+ {[%clk 0:31:38]} 28. Kf3 {[%clk
0:33:09]} 28... Rc8 {[%clk 0:29:36]} 29. Rb1 {[%clk 0:31:13]} 29... Rxc2 {[%clk
0:24:57]} 30. Nb4 {[%clk 0:30:06]} 30... Rc3+ {[%clk 0:25:14]} 31. Ke2 {[%clk
0:30:14]} 31... Ba3 {[%clk 0:25:20]} 32. Nd5 {[%clk 0:30:02]} 32... Rc8 {[%clk
0:23:44]} 33. Rb7 {[%clk 0:28:57]} 33... Nf5 {[%clk 0:23:13]} 34. Ra1 {[%clk
0:28:15]} 34... Bc5 {[%clk 0:23:30]} 35. Rc1 {[%clk 0:27:03]} 35... Rd8 {[%clk
0:23:04]} 36. Nf6+ {[%clk 0:26:46]} 36... Kg7 {[%clk 0:23:28]} 37. Ne4 {[%clk
0:27:04]} 37... Be3 {[%clk 0:22:55]} 38. Rc3 {[%clk 0:26:47]} 38... Bd4 {[%clk
0:23:13]} 39. Rc1 {[%clk 0:26:52]} 39... Nd6 {[%clk 0:22:36]} 40. Nxd6 {[%clk
0:26:33]} 40... Rxd6 {[%clk 0:23:04]} 41. Rf1 {[%clk 0:26:23]} 41... Bf6 {[%clk
0:23:23]} 42. Ke3 {[%clk 0:25:55]} 42... Ra6 {[%clk 0:22:36]} 43. h4 {[%clk
0:25:29]} 43... Ra3+ {[%clk 0:22:50]} 44. Kd2 {[%clk 0:25:31]} 44... Rh3 {[%clk
0:23:03]} 45. Rfb1 {[%clk 0:24:01]} 45... Rxh4 {[%clk 0:23:06]} 46. Rd7 {[%clk
0:23:49]} 46... Rd4+ {[%clk 0:23:27]} 47. Rxd4 {[%clk 0:24:02]} 47... Nxd4
{[%clk 0:23:56]} 48. Kd3 {[%clk 0:24:12]} 48... Nf5 {[%clk 0:24:22]} 49. Ke4
{[%clk 0:24:13]} 49... h5 {[%clk 0:24:46]} 50. Kf4 {[%clk 0:24:31]} 50... Ne7
{[%clk 0:25:04]} 51. Rb7 {[%clk 0:24:43]} 51... g5+ {[%clk 0:25:28]} 52. Kg3
{[%clk 0:25:00]} 52... Nf5+ {[%clk 0:25:54]} 53. Kh3 {[%clk 0:25:24]} 53... g4+
{[%clk 0:26:20]} 54. Kg2 {[%clk 0:25:49]} 54... Kg6 {[%clk 0:26:42]} 55. Rb4
{[%clk 0:25:55]} 55... Be5 {[%clk 0:26:43]} 56. Ra4 {[%clk 0:25:58]} 56... Kg5
{[%clk 0:26:53]} 57. Rb4 {[%clk 0:26:20]} 57... h4 {[%clk 0:27:18]} 58. Re4
{[%clk 0:26:36]} 58... f6 {[%clk 0:27:45]} 59. Kf2 {[%clk 0:26:54]} 59... h3
{[%clk 0:28:05]} 60. Kg1 {[%clk 0:27:16]} 60... g3 {[%clk 0:28:31]} 61. Ra4
{[%clk 0:27:32]} 61... Bd4+ {[%clk 0:28:42]} 62. Kh1 {[%clk 0:27:33]} 62... g2+
{[%clk 0:29:03]} 0-1

[Variant "Standard"]
[Site "Europe Echecs"]

[Event "Championnat du monde jeunes U12F"]
[Date "2024.11.23"]
[White "Qiu, Laurie"]
[Black "Jordan, Christina"]
[WhiteElo "1994"]
[BlackElo "1803"]
[Round "8.5"]
[Result "0-1"]
[TimeControl "5400+30"]

1. e4 {[%clk 1:30:58]} 1... c5 {[%clk 1:30:53]} 2. Nc3 {[%clk 1:31:24]} 2... a6
{[%clk 1:30:59]} 3. g3 {[%clk 1:31:47]} 3... b5 {[%clk 1:30:56]} 4. Bg2 {[%clk
1:32:07]} 4... Bb7 {[%clk 1:31:20]} 5. d3 {[%clk 1:32:22]} 5... d6 {[%clk
1:30:14]} 6. Nh3 {[%clk 1:30:35]} 6... Nf6 {[%clk 1:27:52]} 7. O-O {[%clk
1:29:55]} 7... e6 {[%clk 1:26:28]} 8. f4 {[%clk 1:28:51]} 8... Nc6 {[%clk
1:20:03]} 9. e5 {[%clk 1:13:37]} 9... Nd7 {[%clk 1:14:09]} 10. exd6 {[%clk
0:59:38]} 10... Bxd6 {[%clk 1:13:58]} 11. f5 {[%clk 0:59:15]} 11... exf5 {[%clk
1:08:41]} 12. Rxf5 {[%clk 0:46:40]} 12... O-O {[%clk 1:06:35]} 13. Ng5 {[%clk
0:40:11]} 13... h6 {[%clk 1:04:42]} 14. Nxf7 {[%clk 0:34:19]} 14... Rxf7 {[%clk
1:01:07]} 15. Rxf7 {[%clk 0:31:32]} 15... Kxf7 {[%clk 1:01:20]} 16. Bd5+ {[%clk
0:31:38]} 16... Kf8 {[%clk 0:59:51]} 17. Qh5 {[%clk 0:28:15]} 17... Qe8 {[%clk
0:59:26]} 18. Qf5+ {[%clk 0:25:50]} 18... Nf6 {[%clk 0:58:38]} 19. Bxh6 {[%clk
0:22:49]} 19... Qe5 {[%clk 0:56:25]} 20. Qg6 {[%clk 0:22:23]} 20... Qd4+ {[%clk
0:37:39]} 21. Kg2 {[%clk 0:17:41]} 21... Nxd5 {[%clk 0:37:39]} 22. Qxd6+ {[%clk
0:13:32]} 22... Nce7 {[%clk 0:37:02]} 23. Bxg7+ {[%clk 0:07:28]} 23... Kxg7
{[%clk 0:37:00]} 24. Ne4 {[%clk 0:06:36]} 24... Ne3+ {[%clk 0:36:07]} 25. Kg1
{[%clk 0:06:53]} 25... Nxc2+ {[%clk 0:34:19]} 26. Qxd4+ {[%clk 0:07:13]} 26...
Nxd4 {[%clk 0:33:09]} 27. Nxc5 {[%clk 0:07:37]} 27... Bc6 {[%clk 0:33:26]} 28.
h4 {[%clk 0:07:44]} 28... Nef5 {[%clk 0:32:08]} 29. Kh2 {[%clk 0:07:42]} 29...
Ne2 {[%clk 0:29:41]} 30. g4 {[%clk 0:05:48]} 30... Nxh4 {[%clk 0:29:43]} 31. Kh3
{[%clk 0:06:14]} 31... Rh8 {[%clk 0:29:46]} 32. g5 {[%clk 0:06:14]} 32... Ng2+
{[%clk 0:29:24]} 33. Kg4 {[%clk 0:06:17]} 33... Ne3# {[%clk 0:29:51]} 0-1

[Variant "Standard"]
[Site "Europe Echecs"]

[Event "Championnat du monde jeunes U12F"]
[Date "2024.11.23"]
[White "Zavivaeva, Kristina"]
[Black "Hanya Shah"]
[WhiteElo "1775"]
[BlackElo "1888"]
[Round "8.6"]
[Result "0-1"]
[TimeControl "5400+30"]

1. Nf3 {[%clk 1:30:57]} 1... d5 {[%clk 1:30:46]} 2. g3 {[%clk 1:30:45]} 2... c6
{[%clk 1:31:10]} 3. Bg2 {[%clk 1:31:09]} 3... Bg4 {[%clk 1:31:24]} 4. b3 {[%clk
1:30:51]} 4... Nf6 {[%clk 1:31:37]} 5. c4 {[%clk 1:29:42]} 5... e6 {[%clk
1:31:51]} 6. Bb2 {[%clk 1:29:34]} 6... Nbd7 {[%clk 1:31:01]} 7. O-O {[%clk
1:29:38]} 7... Bd6 {[%clk 1:30:03]} 8. d3 {[%clk 1:29:47]} 8... O-O {[%clk
1:29:32]} 9. Nc3 {[%clk 1:29:35]} 9... Re8 {[%clk 1:27:22]} 10. h3 {[%clk
1:28:29]} 10... Bh5 {[%clk 1:27:14]} 11. Rc1 {[%clk 1:27:41]} 11... Rc8 {[%clk
1:22:09]} 12. e3 {[%clk 1:26:26]} 12... a6 {[%clk 1:20:17]} 13. Qe2 {[%clk
1:25:49]} 13... b5 {[%clk 1:16:19]} 14. Rfd1 {[%clk 1:23:01]} 14... Qe7 {[%clk
1:13:38]} 15. e4 {[%clk 1:18:55]} 15... d4 {[%clk 1:06:14]} 16. Nb1 {[%clk
1:18:29]} 16... Bxf3 {[%clk 1:06:16]} 17. Qxf3 {[%clk 1:18:03]} 17... e5 {[%clk
1:06:05]} 18. g4 {[%clk 1:16:56]} 18... h6 {[%clk 1:03:00]} 19. Qg3 {[%clk
1:16:02]} 19... Nh7 {[%clk 1:02:38]} 20. Nd2 {[%clk 1:15:15]} 20... Ndf8 {[%clk
1:01:51]} 21. Rc2 {[%clk 1:12:54]} 21... Ng6 {[%clk 0:59:09]} 22. Rdc1 {[%clk
1:11:57]} 22... b4 {[%clk 0:57:34]} 23. c5 {[%clk 1:07:24]} 23... Bc7 {[%clk
0:57:20]} 24. Nf3 {[%clk 1:02:53]} 24... Ng5 {[%clk 0:55:42]} 25. Bf1 {[%clk
0:57:11]} 25... Qf6 {[%clk 0:51:10]} 26. Nd2 {[%clk 0:53:16]} 26... Rb8 {[%clk
0:42:05]} 27. Nc4 {[%clk 0:45:11]} 27... Rec8 {[%clk 0:42:10]} 28. Bg2 {[%clk
0:43:43]} 28... Rb5 {[%clk 0:39:48]} 29. Nd2 {[%clk 0:41:14]} 29... Nf4 {[%clk
0:37:02]} 30. Kf1 {[%clk 0:36:49]} 30... Bd8 {[%clk 0:36:19]} 31. a3 {[%clk
0:34:53]} 31... bxa3 {[%clk 0:33:26]} 32. Bxa3 {[%clk 0:35:13]} 32... a5 {[%clk
0:32:05]} 33. Rb1 {[%clk 0:34:48]} 33... Rcb8 {[%clk 0:32:03]} 34. Rcb2 {[%clk
0:33:13]} 34... Nge6 {[%clk 0:31:53]} 35. b4 {[%clk 0:32:41]} 35... axb4 {[%clk
0:31:30]} 36. Rxb4 {[%clk 0:32:26]} 36... Rxb4 {[%clk 0:31:16]} 37. Rxb4 {[%clk
0:32:38]} 37... Rxb4 {[%clk 0:28:02]} 38. Bxb4 {[%clk 0:32:59]} 38... Qe7 {[%clk
0:28:07]} 39. Nc4 {[%clk 0:30:19]} 39... Qa7 {[%clk 0:26:26]} 40. Ba3 {[%clk
0:18:23]} 40... Qa4 {[%clk 0:26:06]} 41. Bf3 {[%clk 0:16:46]} 41... Qb3 {[%clk
0:24:00]} 42. Kg1 {[%clk 0:10:37]} 42... Qxd3 {[%clk 0:24:05]} 43. Nxe5 {[%clk
0:09:42]} 43... Qxa3 {[%clk 0:24:19]} 44. Nxc6 {[%clk 0:09:52]} 44... Bh4 {[%clk
0:23:45]} 45. Qxh4 {[%clk 0:09:09]} 45... Qxf3 {[%clk 0:24:05]} 46. Ne7+ {[%clk
0:09:01]} 46... Kh7 {[%clk 0:24:06]} 47. Qg3 {[%clk 0:08:40]} 47... Ne2+ {[%clk
0:24:28]} 0-1

[Variant "Standard"]
[Site "Europe Echecs"]

[Event "Championnat du monde jeunes U12F"]
[Date "2024.11.23"]
[White "Buyankhishig, Batpelden"]
[Black "Abak, Tuana"]
[WhiteElo "1867"]
[BlackElo "1806"]
[Round "8.7"]
[Result "1-0"]
[TimeControl "5400+30"]

1. d4 {[%clk 1:30:41]} 1... d5 {[%clk 1:30:57]} 2. c4 {[%clk 1:30:41]} 2... c6
{[%clk 1:31:25]} 3. Nc3 {[%clk 1:29:53]} 3... Nf6 {[%clk 1:31:48]} 4. e3 {[%clk
1:30:13]} 4... e6 {[%clk 1:31:00]} 5. Nf3 {[%clk 1:30:02]} 5... Bd6 {[%clk
1:28:15]} 6. Bd3 {[%clk 1:29:21]} 6... O-O {[%clk 1:27:59]} 7. O-O {[%clk
1:29:00]} 7... Nbd7 {[%clk 1:27:29]} 8. e4 {[%clk 1:23:38]} 8... dxe4 {[%clk
1:27:08]} 9. Nxe4 {[%clk 1:24:00]} 9... Nxe4 {[%clk 1:23:39]} 10. Bxe4 {[%clk
1:24:19]} 10... f5 {[%clk 1:24:01]} 11. Bc2 {[%clk 1:21:28]} 11... Nf6 {[%clk
1:18:27]} 12. Bg5 {[%clk 1:16:56]} 12... h6 {[%clk 1:18:48]} 13. Bd2 {[%clk
1:16:50]} 13... Ne4 {[%clk 1:15:08]} 14. Bxe4 {[%clk 1:08:26]} 14... fxe4 {[%clk
1:15:36]} 15. Ne5 {[%clk 1:08:37]} 15... c5 {[%clk 0:54:08]} 16. Bc3 {[%clk
1:02:20]} 16... Qc7 {[%clk 0:54:31]} 17. h3 {[%clk 0:48:03]} 17... Rd8 {[%clk
0:51:48]} 18. dxc5 {[%clk 0:42:59]} 18... Qxc5 {[%clk 0:39:00]} 19. Bd4 {[%clk
0:37:34]} 19... Qc7 {[%clk 0:38:34]} 20. Qh5 {[%clk 0:37:50]} 20... b6 {[%clk
0:32:49]} 21. Rad1 {[%clk 0:35:18]} 21... Rf8 {[%clk 0:24:41]} 22. Ng4 {[%clk
0:31:19]} 22... Kh7 {[%clk 0:13:00]} 23. Bxg7 {[%clk 0:22:14]} 23... Qxg7 {[%clk
0:09:30]} 24. Rxd6 {[%clk 0:21:45]} 24... Rf5 {[%clk 0:08:35]} 25. Qh4 {[%clk
0:21:20]} 25... Rb8 {[%clk 0:05:19]} 26. Rfd1 {[%clk 0:20:11]} 26... Rb7 {[%clk
0:05:36]} 27. Rd8 {[%clk 0:19:04]} 27... Rc7 {[%clk 0:04:20]} 28. Nxh6 {[%clk
0:18:35]} 28... Rf8 {[%clk 0:03:20]} 29. Nf5+ {[%clk 0:18:28]} 29... Qh6 {[%clk
0:03:36]} 30. Qxh6+ {[%clk 0:18:53]} 30... Kg8 {[%clk 0:04:01]} 31. Rxf8# {[%clk
0:19:18]} 1-0

[Variant "Standard"]
[Site "Europe Echecs"]

[Event "Championnat du monde jeunes U12F"]
[Date "2024.11.23"]
[White "Illes-Nagy, Nora"]
[Black "Aadya Ranganath"]
[WhiteElo "1803"]
[BlackElo "1753"]
[Round "8.8"]
[Result "1-0"]
[TimeControl "5400+30"]

1. d4 {[%clk 1:30:58]} 1... Nf6 {[%clk 1:30:54]} 2. c4 {[%clk 1:31:22]} 2... g6
{[%clk 1:31:19]} 3. Nc3 {[%clk 1:31:47]} 3... Bg7 {[%clk 1:31:44]} 4. e4 {[%clk
1:32:11]} 4... d6 {[%clk 1:32:10]} 5. Be2 {[%clk 1:32:37]} 5... O-O {[%clk
1:32:30]} 6. Nf3 {[%clk 1:32:47]} 6... e5 {[%clk 1:32:26]} 7. Be3 {[%clk
1:32:34]} 7... Nc6 {[%clk 1:28:45]} 8. d5 {[%clk 1:32:32]} 8... Ne7 {[%clk
1:28:19]} 9. Nd2 {[%clk 1:31:55]} 9... a6 {[%clk 1:21:36]} 10. b4 {[%clk
1:26:34]} 10... Nd7 {[%clk 1:18:18]} 11. c5 {[%clk 1:20:41]} 11... f5 {[%clk
1:14:15]} 12. f3 {[%clk 1:19:35]} 12... Nf6 {[%clk 1:08:26]} 13. Nc4 {[%clk
1:09:39]} 13... Ne8 {[%clk 1:02:36]} 14. Rc1 {[%clk 1:02:15]} 14... Bd7 {[%clk
0:58:29]} 15. Qd2 {[%clk 0:50:40]} 15... f4 {[%clk 0:57:24]} 16. Bf2 {[%clk
0:50:54]} 16... Nc8 {[%clk 0:53:22]} 17. Qc2 {[%clk 0:47:15]} 17... Qf6 {[%clk
0:47:04]} 18. Na5 {[%clk 0:42:30]} 18... Rb8 {[%clk 0:44:37]} 19. a3 {[%clk
0:37:50]} 19... Ne7 {[%clk 0:41:14]} 20. Na4 {[%clk 0:33:28]} 20... Bxa4 {[%clk
0:33:25]} 21. Qxa4 {[%clk 0:33:47]} 21... g5 {[%clk 0:29:45]} 22. Qb3 {[%clk
0:25:28]} 22... Kh8 {[%clk 0:27:38]} 23. c6 {[%clk 0:21:33]} 23... bxc6 {[%clk
0:24:45]} 24. Nxc6 {[%clk 0:21:39]} 24... Nxc6 {[%clk 0:23:52]} 25. Rxc6 {[%clk
0:21:56]} 25... a5 {[%clk 0:24:02]} 26. b5 {[%clk 0:21:32]} 26... Qg6 {[%clk
0:22:49]} 27. h3 {[%clk 0:20:26]} 27... Qf7 {[%clk 0:21:21]} 28. Qc3 {[%clk
0:19:50]} 28... Ra8 {[%clk 0:21:04]} 29. Ra6 {[%clk 0:19:18]} 29... Nf6 {[%clk
0:21:15]} 30. Qxa5 {[%clk 0:18:36]} 30... Rac8 {[%clk 0:20:54]} 31. Rc6 {[%clk
0:17:21]} 31... Nh5 {[%clk 0:20:21]} 32. Bd1 {[%clk 0:15:42]} 32... Ng3 {[%clk
0:20:17]} 33. Rg1 {[%clk 0:14:12]} 33... h5 {[%clk 0:20:11]} 34. Qc3 {[%clk
0:13:59]} 34... g4 {[%clk 0:19:49]} 35. hxg4 {[%clk 0:14:05]} 35... hxg4 {[%clk
0:20:11]} 36. b6 {[%clk 0:14:09]} 36... Nxe4 {[%clk 0:19:30]} 37. fxe4 {[%clk
0:14:24]} 37... g3 {[%clk 0:19:56]} 38. Rh1+ {[%clk 0:14:28]} 38... Kg8 {[%clk
0:20:22]} 39. Bg1 {[%clk 0:14:32]} 39... f3 {[%clk 0:20:16]} 40. Bxf3 {[%clk
0:14:11]} 40... Rb8 {[%clk 0:19:57]} 41. Rxc7 {[%clk 0:14:10]} 41... Qf4 {[%clk
0:19:53]} 42. Be3 {[%clk 0:14:25]} 42... Qf6 {[%clk 0:20:16]} 43. b7 {[%clk
0:14:18]} 43... Qg6 {[%clk 0:20:09]} 44. Ba7 {[%clk 0:14:03]} 44... Qe8 {[%clk
0:19:05]} 45. Bxb8 {[%clk 0:14:19]} 45... Qxb8 {[%clk 0:19:31]} 46. Bg4 {[%clk
0:10:50]} 46... Re8 {[%clk 0:18:54]} 47. Rc8 {[%clk 0:10:36]} 47... Rxc8 {[%clk
0:18:54]} 48. bxc8=Q+ {[%clk 0:10:58]} 48... Bf8 {[%clk 0:19:15]} 49. Qxb8
{[%clk 0:11:17]} 49... Kf7 {[%clk 0:19:39]} 50. Be6+ {[%clk 0:11:39]} 50... Kf6
{[%clk 0:20:05]} 51. Qxf8+ {[%clk 0:12:02]} 51... Kg6 {[%clk 0:20:30]} 52. Qxg3#
{[%clk 0:12:25]} 1-0

[Variant "Standard"]
[Site "Europe Echecs"]

[Event "Championnat du monde jeunes U12F"]
[Date "2024.11.23"]
[White "Pratitee Bordoloi"]
[Black "Harutyunyan, Gabriela"]
[WhiteElo "1929"]
[BlackElo "1730"]
[Round "8.9"]
[Result "1-0"]
[TimeControl "5400+30"]

1. e4 {[%clk 1:30:57]} 1... c5 {[%clk 1:30:37]} 2. Nf3 {[%clk 1:31:18]} 2... e6
{[%clk 1:30:45]} 3. d4 {[%clk 1:31:40]} 3... cxd4 {[%clk 1:31:09]} 4. Nxd4
{[%clk 1:32:01]} 4... Nf6 {[%clk 1:31:32]} 5. Nc3 {[%clk 1:32:09]} 5... Nc6
{[%clk 1:31:51]} 6. Be3 {[%clk 1:32:19]} 6... Bb4 {[%clk 1:31:32]} 7. f3 {[%clk
1:30:51]} 7... d5 {[%clk 1:30:14]} 8. Nxc6 {[%clk 1:20:45]} 8... bxc6 {[%clk
1:30:32]} 9. e5 {[%clk 1:17:20]} 9... Nd7 {[%clk 1:26:32]} 10. f4 {[%clk
1:17:11]} 10... Bc5 {[%clk 1:16:33]} 11. Bxc5 {[%clk 1:12:00]} 11... Nxc5 {[%clk
1:16:55]} 12. b4 {[%clk 1:08:35]} 12... Nd7 {[%clk 1:15:23]} 13. Qd2 {[%clk
1:07:45]} 13... a5 {[%clk 1:14:32]} 14. b5 {[%clk 1:07:05]} 14... c5 {[%clk
1:12:57]} 15. Be2 {[%clk 1:06:25]} 15... Bb7 {[%clk 1:10:58]} 16. Bf3 {[%clk
1:04:56]} 16... a4 {[%clk 1:08:42]} 17. O-O {[%clk 1:03:51]} 17... Nb6 {[%clk
1:06:26]} 18. Qf2 {[%clk 1:02:15]} 18... Qc7 {[%clk 1:04:50]} 19. Rae1 {[%clk
0:59:45]} 19... O-O-O {[%clk 0:59:58]} 20. a3 {[%clk 0:54:41]} 20... h6 {[%clk
0:57:05]} 21. g3 {[%clk 0:50:31]} 21... Kb8 {[%clk 0:49:41]} 22. Bg2 {[%clk
0:49:31]} 22... Rhe8 {[%clk 0:47:01]} 23. Re2 {[%clk 0:41:47]} 23... f5 {[%clk
0:43:44]} 24. exf6 {[%clk 0:39:10]} 24... gxf6 {[%clk 0:43:43]} 25. Rfe1 {[%clk
0:38:23]} 25... e5 {[%clk 0:43:02]} 26. fxe5 {[%clk 0:34:41]} 26... fxe5 {[%clk
0:41:32]} 27. Qf6 {[%clk 0:33:16]} 27... Rd6 {[%clk 0:41:14]} 28. Qh4 {[%clk
0:32:13]} 28... e4 {[%clk 0:39:54]} 29. Rf1 {[%clk 0:29:54]} 29... Qg7 {[%clk
0:38:33]} 30. Qf4 {[%clk 0:27:42]} 30... Rd8 {[%clk 0:37:29]} 31. Nd1 {[%clk
0:22:19]} 31... Ka8 {[%clk 0:37:04]} 32. Ne3 {[%clk 0:20:19]} 32... Qc3 {[%clk
0:35:09]} 33. Ng4 {[%clk 0:16:41]} 33... Qc4 {[%clk 0:29:31]} 34. Rfe1 {[%clk
0:13:58]} 34... Qxb5 {[%clk 0:28:39]} 35. Nxh6 {[%clk 0:12:54]} 35... R6d7
{[%clk 0:28:27]} 36. Bh3 {[%clk 0:10:51]} 36... Rh7 {[%clk 0:26:35]} 37. Bf5
{[%clk 0:08:49]} 37... Rf8 {[%clk 0:26:20]} 38. g4 {[%clk 0:06:18]} 38... Qc6
{[%clk 0:25:16]} 39. g5 {[%clk 0:05:21]} 39... Bc8 {[%clk 0:24:37]} 40. Qg4
{[%clk 0:02:12]} 40... Bxf5 {[%clk 0:22:20]} 41. Nxf5 {[%clk 0:02:37]} 41... Qg6
{[%clk 0:21:56]} 42. Rf2 {[%clk 0:01:19]} 42... Nd7 {[%clk 0:21:47]} 43. Nh4
{[%clk 0:00:53]} 43... Qd6 {[%clk 0:20:45]} 44. Rxf8+ {[%clk 0:01:04]} 44...
Qxf8 {[%clk 0:20:33]} 45. g6 {[%clk 0:00:50]} 45... Rg7 {[%clk 0:20:48]} 46. Qe6
{[%clk 0:00:38]} 46... Qg8 {[%clk 0:20:29]} 47. Qa6+ {[%clk 0:00:55]} 47... Kb8
{[%clk 0:20:53]} 48. Rb1+ {[%clk 0:01:21]} 48... Kc7 {[%clk 0:21:19]} 49. Rb7+
{[%clk 0:01:31]} 49... Kd8 {[%clk 0:21:37]} 50. Qa5+ {[%clk 0:01:20]} 50... Ke8
{[%clk 0:21:41]} 51. Qa8+ {[%clk 0:01:08]} 51... Ke7 {[%clk 0:22:04]} 52. Nf5+
{[%clk 0:00:37]} 52... Kf6 {[%clk 0:22:26]} 53. Qxg8 {[%clk 0:00:47]} 53... Rxg8
{[%clk 0:22:43]} 54. Rxd7 {[%clk 0:00:58]} 54... Kxf5 {[%clk 0:23:09]} 55. Rxd5+
{[%clk 0:01:16]} 55... Kf4 {[%clk 0:23:21]} 56. Rd6 {[%clk 0:00:57]} 56... Ke5
{[%clk 0:22:24]} 57. Ra6 {[%clk 0:00:58]} 57... Kf4 {[%clk 0:21:02]} 58. Kf2
{[%clk 0:01:10]} 58... Rd8 {[%clk 0:20:33]} 59. g7 {[%clk 0:01:18]} 59... e3+
{[%clk 0:20:52]} 60. Ke1 {[%clk 0:01:01]} 60... Rg8 {[%clk 0:20:49]} 61. Rf6+
{[%clk 0:00:46]} 61... Ke5 {[%clk 0:20:56]} 62. Rf7 {[%clk 0:01:04]} 62... Ke6
{[%clk 0:21:20]} 63. Rb7 {[%clk 0:01:24]} 63... Kf5 {[%clk 0:21:35]} 64. Ke2
{[%clk 0:01:41]} 64... Kf4 {[%clk 0:21:46]} 65. Rf7+ {[%clk 0:02:05]} 65... Ke4
{[%clk 0:22:09]} 66. h4 {[%clk 0:02:19]} 66... Ke5 {[%clk 0:21:59]} 67. h5
{[%clk 0:02:26]} 67... Ke6 {[%clk 0:22:15]} 68. Ra7 {[%clk 0:02:49]} 68... Kf6
{[%clk 0:22:40]} 69. h6 {[%clk 0:03:06]} 69... Kg6 {[%clk 0:23:06]} 70. Ra6+
{[%clk 0:03:26]} 70... Kh7 {[%clk 0:23:32]} 71. Kxe3 {[%clk 0:03:48]} 71... c4
{[%clk 0:23:58]} 72. Rf6 {[%clk 0:03:55]} 72... Re8+ {[%clk 0:24:20]} 73. Kd4
{[%clk 0:04:16]} 73... Rd8+ {[%clk 0:24:36]} 74. Kc3 {[%clk 0:04:25]} 1-0

[Variant "Standard"]
[Site "Europe Echecs"]